bitfinex-derivatives/quotes_SOLF0:USTF0_20240906
["timestamp","ask_amount","ask_price","bid_price","bid_amount"]
[1725636605374,6.5604,127.9,127.86,3.913]
[1725636605580,2.6483,127.9,127.85,3.99347914]
[1725636605777,2.6483,127.9,127.84,37.44]
[1725636605978,23.26085802,127.91,127.84,37.44]
[1725636605979,21.91195802,127.91,127.86,37.44]
[1725636606480,21.91195802,127.91,127.88,37.44]
[1725636607477,21.91195802,127.91,127.86,3.90262034]
[1725636607681,21.91195802,127.91,127.76,0.5836]
[1725636607682,21.91195802,127.91,127.83,37.44]
[1725636607889,21.91195802,127.91,127.76,0.5836]
[1725636607890,6.57668406,127.9,127.82,3.86500715]
[1725636608085,3.913,127.86,127.82,3.914]
[1725636608282,3.913,127.86,127.82,3.82353628]
[1725636608473,2.7285,127.9,127.81,37.44]
[1725636608675,2.7285,127.9,127.83,3.9139]
[1725636608676,3.9129,127.87,127.83,3.9139]
[1725636608882,2.7285,127.9,127.83,37.44]
[1725636609083,21.91859236,127.94,127.85,37.44]
[1725636609277,3.9118,127.9,127.85,37.44]
[1725636609674,25.80589988,127.94,127.85,37.44]
[1725636609884,3.9116,127.91,127.87,3.9125]
[1725636610281,25.80589988,127.94,127.85,37.44]
[1725636610479,3.9115,127.91,127.87,3.9126]
[1725636610781,25.80589988,127.94,127.85,37.44]
[1725636611086,3.9109,127.93,127.89,3.9119]
[1725636611281,21.91859236,127.94,127.92,37.44]
[1725636611487,45.55203476,128.02,127.93,37.44]
[1725636611797,37.44,128.08,127.87,37.44]
[1725636611798,11.7125,128.16,127.97,37.44]
[1725636611984,11.7125,128.16,127.99,37.44]
[1725636611985,21.90661263,128.02,127.99,37.44]
[1725636612189,2.5908,128.06,128.0,3.84593401]
[1725636612595,3.9076,128.04,128.0,3.84593401]
[1725636612989,6.53648107,128.06,127.97,37.44]
[1725636613189,2.5908,128.06,127.95,37.44]
[1725636613387,2.5908,128.06,128.01,37.44]
[1725636613585,3.9075,128.04,128.01,41.30392759]
[1725636613892,2.5908,128.06,127.95,37.44]
[1725636614192,2.5908,128.06,127.93,3.86862157]
[1725636614193,45.06,128.04,127.93,3.86862157]
[1725636614390,1.16525864,128.03,127.92,45.06]
[1725636614584,45.06,128.04,127.92,48.98548488]
[1725636614790,3.9097,127.97,127.92,48.98548488]
[1725636614982,45.06,128.04,127.92,48.98548488]
[1725636615188,3.9094,127.98,127.93,3.9107]
[1725636615385,3.83715756,128.0,127.92,3.92548488]
[1725636615583,45.06,128.02,127.9,45.06]
[1725636615584,2.5501,127.99,127.9,45.06]
[1725636615795,6.52756511,127.99,127.9,45.06]
[1725636616001,2.5501,127.99,127.9,49.04450003]
[1725636616291,45.06,127.97,127.86,45.06]
[1725636616495,45.06,127.97,127.84,45.06]
[1725636616795,1.3185,127.96,127.84,45.06]
[1725636617195,1.3185,127.96,127.85,3.9132]
[1725636617391,1.3185,127.96,127.84,45.06]
[1725636617586,3.912,127.9,127.85,3.9132]
[1725636617784,47.6101,127.99,127.89,45.06]
[1725636617785,2.5501,127.99,127.89,45.06]
[1725636617987,2.5501,127.99,127.92,45.06]
[1725636618191,2.5501,127.99,127.89,3.99676634]
[1725636618192,6.54138917,127.99,127.89,3.99676634]
[1725636618391,6.54138917,127.99,127.89,45.06]
[1725636618695,6.54138917,127.99,127.89,3.87000907]
[1725636618696,45.06,127.98,127.89,3.87000907]
[1725636618889,6.54138917,127.99,127.83,45.06]
[1725636618890,45.06,127.93,127.83,45.06]
[1725636619091,45.06,127.91,127.81,45.06]
[1725636619293,45.06,127.91,127.82,3.91930356]
[1725636619596,48.9170986,127.91,127.81,45.06]
[1725636619789,48.9170986,127.91,127.68,45.06]
[1725636619790,45.06,127.89,127.77,45.06]
[1725636620191,5.16752482,127.91,127.81,45.06]
[1725636620901,3.913,127.87,127.82,3.9142]
[1725636621089,1.2893,127.91,127.81,49.05042286]
[1725636621295,2.7153,127.92,127.83,45.06]
[1725636621489,3.9115,127.91,127.86,48.973]
[1725636621697,2.7153,127.92,127.84,45.06]
[1725636621896,2.7153,127.92,127.82,45.06]
[1725636622293,1.2778,127.91,127.82,45.06]
[1725636622504,3.9129,127.87,127.82,45.06]
[1725636622801,1.2778,127.91,127.82,45.06]
[1725636623303,1.2778,127.91,127.74,45.06]
[1725636623304,46.3378,127.91,127.79,45.06]
[1725636623491,46.3378,127.91,127.79,49.02145853]
[1725636623492,45.06,127.89,127.79,49.02145853]
[1725636623791,45.06,127.89,127.77,45.06]
[1725636623994,45.06,127.89,127.79,45.06]
[1725636624296,3.9134,127.85,127.8,7.89261754]
[1725636624491,1.2778,127.91,127.8,3.97781754]
[1725636624689,3.9129,127.87,127.82,48.9741]
[1725636624900,1.2778,127.91,127.82,45.06]
[1725636625196,3.9126,127.88,127.83,3.9139]
[1725636625704,1.2778,127.91,127.84,45.06]
[1725636625899,2.7153,127.92,127.86,45.06]
[1725636626095,3.89444073,127.95,127.88,45.06]
[1725636626291,1.3008,127.98,127.88,48.9722]
[1725636626292,3.9111,127.93,127.88,48.9722]
[1725636626495,3.9111,127.93,127.88,45.06]
[1725636626899,2.7005,127.96,127.88,45.06]
[1725636627391,3.9112,127.92,127.88,45.06]
[1725636627601,3.9112,127.92,127.86,48.97205555]
[1725636627898,3.9115,127.91,127.87,3.9125]
[1725636628101,3.94990155,127.95,127.82,45.06]
[1725636628102,49.00990155,127.95,127.84,45.06]
[1725636628405,49.00990155,127.95,127.82,45.06]
[1725636628406,3.912,127.9,127.82,45.06]
[1725636628600,3.912,127.9,127.84,45.06]
[1725636628900,49.03493807,127.95,127.84,45.06]
[1725636629201,1.1633293,127.94,127.82,45.06]
[1725636629402,2.7005,127.96,127.86,45.06]
[1725636629600,2.7005,127.96,127.88,45.06]
[1725636629792,27.39814179,127.98,127.93,45.06]
[1725636629997,2.597,128.01,127.93,45.06]
[1725636630199,2.597,128.01,127.93,48.92593208]
[1725636630799,2.597,128.01,127.95,45.06]
[1725636631196,231.83088645,128.04,127.95,45.06]
[1725636631400,2.6863,128.04,127.97,45.06]
[1725636631801,2.6863,128.04,127.95,45.06]
[1725636632298,46.3828,128.06,127.95,48.90755267]
[1725636632494,2.6863,128.05,127.95,48.90755267]
[1725636632698,2.6863,128.05,127.97,45.06]
[1725636633005,2.6863,128.05,127.99,3.9089]
[1725636633302,3.9088,128.0,127.97,45.06]
[1725636633501,1.3177,128.04,127.97,45.06]
[1725636633705,1.3177,128.04,127.95,3.84755267]
[1725636633910,50.22795951,128.04,127.96,3.94486432]
[1725636634095,50.22795951,128.04,127.93,45.06]
[1725636634412,1.3177,128.04,127.95,45.06]
[1725636634991,3.9085,128.01,127.97,3.9095]
[1725636635205,1.3177,128.04,127.95,45.06]
[1725636635407,1.3177,128.04,127.97,45.06]
[1725636635609,1.3812,128.05,127.97,45.06]
[1725636636104,3.908,128.03,127.98,3.9092]
[1725636636303,1.3812,128.05,127.97,45.06]
[1725636636701,3.9081,128.03,127.98,3.9092]
[1725636636912,1.3812,128.05,127.97,45.06]
[1725636637108,1.3812,128.05,127.95,45.06]
[1725636638302,3.9089,128.0,127.96,3.9099]
[1725636638504,1.3812,128.05,127.97,45.06]
[1725636639499,3.9084,128.02,127.98,3.9093]
[1725636639700,1.3812,128.05,127.97,45.06]
[1725636639903,1.3812,128.05,127.95,45.06]
[1725636640112,3.9088,128.0,127.97,3.9095]
[1725636640306,1.3812,128.05,127.97,45.06]
[1725636640711,3.9083,128.02,127.98,3.9092]
[1725636640907,1.3812,128.05,127.98,3.9092]
[1725636641107,5.13531612,128.07,127.97,48.9695]
[1725636641403,45.06,128.04,127.92,45.06]
[1725636641711,10.35838697,128.06,127.89,3.912]
[1725636641712,45.06,128.0,127.89,3.912]
[1725636642011,45.06,128.0,127.89,48.972]
[1725636642012,2.6778,127.99,127.89,48.972]
[1725636642313,52.8753,128.04,127.93,45.06]
[1725636642613,52.8753,128.04,127.94,3.9105]
[1725636642614,3.9095,127.98,127.94,3.9105]
[1725636642912,1.3805,128.03,127.95,3.95518787]
[1725636643104,3.9086,128.01,127.97,3.9094]
[1725636643311,1.3805,128.03,127.97,45.06]
[1725636643510,1.4007,128.06,127.97,45.06]
[1725636643812,1.3731,128.05,127.97,45.06]
[1725636644115,1.3731,128.05,127.95,48.87665963]
[1725636644314,1.3731,128.05,127.96,3.9098]
[1725636644814,3.9091,127.99,127.96,3.93514814]
[1725636645010,1.3731,128.05,127.97,45.06]
[1725636645208,1.4007,128.06,127.99,45.06]
[1725636645612,1.4007,128.06,127.97,45.06]
[1725636646118,1.4007,128.06,127.97,48.89543008]
[1725636646513,3.9084,128.01,127.98,3.9093]
[1725636646809,2.6464,128.08,127.97,48.89543008]
[1725636647013,3.9087,128.01,127.97,52.80483008]
[1725636647215,1.3924,128.06,127.97,48.89543008]
[1725636647407,3.9085,128.01,127.98,3.9093]
[1725636647606,1.3924,128.06,127.97,48.89543008]
[1725636648009,3.9085,128.01,127.98,3.9092]
[1725636648312,5.30920179,128.06,127.97,48.89543008]
[1725636648519,1.3924,128.06,127.97,48.89543008]
[1725636649101,50.34848625,128.06,127.97,48.89543008]
[1725636649312,45.06,128.04,127.9,3.9115]
[1725636649511,45.06,128.01,127.9,45.06]
[1725636649723,2.7067,128.0,127.9,45.06]
[1725636649914,4.0849,128.0,127.9,48.9717]
[1725636650308,45.06,127.99,127.88,45.06]
[1725636650508,48.94478997,127.99,127.88,45.06]
[1725636650712,48.94478997,127.99,127.85,85.04667678]
[1725636650713,45.06,127.97,127.89,3.8644569]
[1725636651215,1.16520391,127.96,127.89,3.8644569]
[1725636651512,3.912,127.9,127.89,3.8644569]
[1725636651718,45.06,127.97,127.85,45.06]
[1725636651719,45.06,127.97,127.86,3.88322589]
[1725636651915,3.912,127.9,127.86,3.88322589]
[1725636652217,3.912,127.9,127.79,3.82241569]
[1725636652218,3.92154591,127.91,127.83,45.06]
[1725636652419,45.06,127.95,127.83,48.9737]
[1725636652713,45.06,127.95,127.81,45.06]
[1725636652915,80.21338997,127.99,127.79,3.82241569]
[1725636652916,45.06,127.92,127.79,45.06]
[1725636653221,2.6641,127.91,127.81,45.06]
[1725636653609,2.6641,127.91,127.81,48.9743]
[1725636653807,2.6641,127.91,127.82,3.84225277]
[1725636654310,3.9132,127.86,127.81,48.9744]
[1725636654516,2.6641,127.91,127.81,45.06]
[1725636654706,2.6641,127.91,127.7,7.8353]
[1725636654707,3.9126,127.88,127.83,45.06]
[1725636655319,45.06,127.97,127.83,49.00831883]
[1725636655518,1.16399318,127.96,127.86,45.06]
[1725636655811,1.16399318,127.96,127.83,3.94831883]
[1725636655812,45.06,127.94,127.83,45.06]
[1725636656010,45.06,127.94,127.83,48.89313412]
[1725636656213,45.06,127.96,127.85,45.06]
[1725636656819,3.912,127.9,127.85,45.06]
[1725636657120,45.06,127.96,127.85,49.06608688]
[1725636657314,1.16388518,127.95,127.85,49.06608688]
[1725636657713,3.9119,127.9,127.86,3.913]
[1725636657915,45.06,127.96,127.85,49.06608688]
[1725636658523,3.9115,127.92,127.87,48.9725]
[1725636659015,3.9115,127.91,127.87,48.9725]
[1725636659318,45.06,127.95,127.86,3.861788]
[1725636659520,6.67072228,127.97,127.85,45.06]
[1725636659719,1.16501904,127.96,127.87,3.9127]
[1725636660027,51.73072228,127.97,127.87,45.06]
[1725636660411,51.73072228,127.97,127.83,3.91656513]
[1725636660412,45.06,127.95,127.85,45.06]
[1725636661123,3.9122,127.89,127.86,3.89582808]
[1725636661419,3.9122,127.89,127.74,56.82631456]
[1725636661420,45.06,127.91,127.79,45.06]
[1725636661620,3.9137,127.84,127.79,45.06]
[1725636661839,3.9137,127.84,127.8,3.9146]
[1725636662124,3.9136,127.84,127.81,37.57]
[1725636662319,37.57,127.89,127.79,37.57]
[1725636662521,0.05777488,127.83,127.75,37.57]
[1725636662718,0.05777488,127.83,127.74,3.93453665]
[1725636662919,37.57,127.81,127.71,41.4874]
[1725636663128,3.9163,127.76,127.73,37.57]
[1725636663320,1.3016,127.8,127.75,37.57]
[1725636663722,41.56246655,127.82,127.73,3.85038171]
[1725636663925,45.15,127.82,127.72,3.9173]
[1725636664119,45.15,127.82,127.7,45.15]
[1725636664424,49.06613999,127.82,127.7,49.00273022]
[1725636665024,3.91613999,127.82,127.73,3.9167]
[1725636665221,2.658,127.84,127.72,45.15]
[1725636665427,2.658,127.84,127.74,49.0664]
[1725636665428,3.9154,127.79,127.74,49.0664]
[1725636665625,2.658,127.84,127.74,49.0664]
[1725636665626,1.3628,127.84,127.76,45.15]
[1725636665824,1.3628,127.84,127.72,45.15]
[1725636666025,3.916,127.77,127.72,45.15]
[1725636666227,3.916,127.77,127.72,49.06006222]
[1725636666528,3.83213509,127.8,127.72,49.06006222]
[1725636666729,1.3628,127.84,127.73,3.9169]
[1725636666926,1.3628,127.84,127.72,49.06006222]
[1725636667932,1.3628,127.84,127.74,3.9164]
[1725636668120,1.3628,127.84,127.72,49.06006222]
[1725636668323,3.9155,127.78,127.72,49.06006222]
[1725636668525,3.87207764,127.8,127.72,49.06006222]
[1725636668720,3.87207764,127.8,127.72,3.91006222]
[1725636668721,3.917,127.73,127.72,3.91006222]
[1725636668923,3.917,127.73,127.67,45.15]
[1725636669127,1.3759,127.79,127.67,45.15]
[1725636669335,3.9159,127.77,127.73,3.9169]
[1725636669628,3.9159,127.77,127.67,45.15]
[1725636669629,45.15,127.82,127.74,3.84936521]
[1725636669828,3.95470389,127.82,127.72,45.15]
[1725636670028,3.83252669,127.82,127.76,45.15]
[1725636670225,1.3895,127.83,127.74,45.15]
[1725636670836,1.3895,127.83,127.72,48.96842932]
[1725636671224,3.9154,127.79,127.72,48.96842932]
[1725636671430,3.85876346,127.82,127.74,45.15]
[1725636671733,3.9159,127.77,127.73,3.9168]
[1725636672036,3.9159,127.77,127.73,7.73522932]
[1725636672241,3.82870266,127.79,127.67,45.15]
[1725636672242,45.15,127.78,127.67,45.15]
[1725636672429,45.15,127.75,127.67,3.94186436]
[1725636672731,49.05818995,127.75,127.65,45.15]
[1725636673331,3.918,127.7,127.66,3.9189]
[1725636673641,49.05818995,127.75,127.65,49.02451553]
[1725636673839,3.9184,127.69,127.65,52.94391553]
[1725636674040,45.15,127.73,127.65,3.87451553]
[1725636674241,45.15,127.73,127.62,45.15]
[1725636674427,45.15,127.71,127.62,3.9657497]
[1725636674634,2.6463,127.7,127.6,45.15]
[1725636675136,2.6463,127.7,127.62,3.9203]
[1725636675436,2.6463,127.7,127.62,49.12950763]
[1725636675644,2.6463,127.7,127.62,45.15]
[1725636675833,3.90818995,127.75,127.65,45.15]
[1725636676036,2.6662,127.75,127.65,45.15]
[1725636676433,2.6662,127.75,127.67,45.15]
[1725636676638,6.65707542,127.75,127.67,45.15]
[1725636676839,2.6662,127.75,127.65,45.15]
[1725636677039,45.15,127.74,127.65,45.15]
[1725636677341,45.15,127.74,127.66,3.960692]
[1725636677940,228.0,127.8,127.69,45.15]
[1725636678143,228.0,127.8,127.72,45.15]
[1725636678144,2.6662,127.8,127.72,45.15]
[1725636678339,2.6662,127.8,127.74,45.15]
[1725636678545,2.6662,127.8,127.74,3.95188375]
[1725636678835,1.3975,127.82,127.74,45.15]
[1725636679037,45.15,127.84,127.74,48.97850978]
[1725636679431,45.15,127.84,127.74,3.82850978]
[1725636679635,4.01298324,127.84,127.76,45.15]
[1725636679841,2.6604,127.86,127.76,45.15]
[1725636680053,2.6604,127.86,127.78,45.15]
[1725636680244,6.60797545,127.86,127.78,45.15]
[1725636680538,3.914,127.83,127.78,49.0654]
[1725636680844,2.6604,127.86,127.78,45.15]
[1725636681046,45.15,127.9,127.78,45.15]
[1725636681338,47.8104,127.9,127.8,45.15]
[1725636681545,3.9129,127.87,127.8,45.15]
[1725636682147,3.86134143,127.89,127.78,45.15]
[1725636682348,45.15,127.88,127.79,3.94901912]
[1725636682548,49.09901912,127.88,127.79,3.94901912]
[1725636683054,3.9139,127.84,127.79,7.86391912]
[1725636683351,47.8104,127.9,127.78,45.15]
[1725636683547,47.8104,127.9,127.73,45.15]
[1725636683548,2.6604,127.9,127.8,45.15]
[1725636683948,2.6604,127.9,127.8,3.96819862]
[1725636684147,337.0,127.92,127.82,45.15]
[1725636684344,4.0896,127.95,127.82,45.15]
[1725636684547,4.0896,127.95,127.84,45.15]
[1725636685147,3.9116,127.91,127.86,3.913]
[1725636685952,4.0896,127.95,127.84,45.15]
[1725636686154,2.7139,127.95,127.87,45.15]
[1725636686354,2.7139,127.95,127.8,45.15]
[1725636686355,46.5008,128.0,127.89,45.15]
[1725636686557,53.11949969,128.0,127.89,45.15]
[1725636686756,53.11949969,128.0,127.86,45.15]
[1725636686757,45.15,127.97,127.86,45.15]
[1725636686967,3.9113,127.92,127.86,49.01317472]
[1725636687155,45.15,127.97,127.86,49.01317472]
[1725636687356,3.9117,127.91,127.86,52.92607472]
[1725636687557,45.15,127.95,127.86,49.01317472]
[1725636688056,45.15,127.98,127.86,49.01317472]
[1725636688252,53.11949969,128.0,127.89,45.15]
[1725636688452,53.11949969,128.0,127.86,3.86317472]
[1725636688453,2.6213,128.0,127.93,3.9109]
[1725636688659,2.6213,128.0,127.91,45.15]
[1725636689252,3.9094,127.98,127.94,3.9104]
[1725636689455,3.9094,127.98,127.94,7.83205092]
[1725636689658,3.93964732,128.02,127.93,45.15]
[1725636689854,2.6671,128.04,127.93,3.91382639]
[1725636690053,45.15,128.01,127.91,45.15]
[1725636690254,1.16283332,128.03,127.93,45.15]
[1725636690255,45.15,128.03,127.93,45.15]
[1725636690452,45.15,128.03,127.93,49.12876994]
[1725636690749,3.9099,127.97,127.93,7.88966994]
[1725636690958,47.8171,128.04,127.93,45.15]
[1725636691153,51.77004901,128.04,127.93,48.97188825]
[1725636691358,51.77004901,128.04,127.95,3.9101]
[1725636691656,51.77004901,128.04,127.93,48.97188825]
[1725636691854,3.9092,127.98,127.94,3.9101]
[1725636692046,45.15,128.02,127.89,45.15]
[1725636692247,45.15,128.0,127.89,45.15]
[1725636692447,3.9107,127.93,127.89,45.15]
[1725636692656,45.15,128.0,127.89,45.15]
[1725636692849,45.15,128.02,127.91,45.15]
[1725636693048,1.16142316,128.01,127.91,45.15]
[1725636693257,228.0,128.03,127.93,45.15]
[1725636693563,3.9089,127.99,127.95,3.9099]
[1725636693860,6.62004901,128.04,127.95,45.15]
[1725636694055,6.62004901,128.04,127.96,3.9094]
[1725636694056,3.9086,128.0,127.96,3.9094]
[1725636694257,6.62004901,128.04,127.95,45.15]
[1725636694449,51.77004901,128.04,127.93,45.15]
[1725636694654,3.9091,127.98,127.93,45.15]
[1725636694857,51.77004901,128.04,127.93,45.15]
[1725636695058,6.62004901,128.04,127.93,3.87588825]
[1725636695261,3.9096,127.96,127.93,3.9105]
[1725636695956,3.9094,127.97,127.94,3.95407845]
[1725636696250,3.9094,127.97,127.91,45.15]
[1725636696450,45.15,128.02,127.93,3.9103]
[1725636696451,3.9096,127.96,127.93,3.9103]
[1725636696655,45.15,128.02,127.91,49.01806923]
[1725636697064,1.16189807,128.03,127.81,3.98848214]
[1725636697065,45.15,127.98,127.87,45.15]
[1725636697360,45.15,127.96,127.88,3.92084762]
[1725636697558,45.15,127.94,127.83,45.15]
[1725636697864,3.8555588,127.96,127.83,45.15]
[1725636697865,45.15,127.93,127.83,45.15]
[1725636698163,3.8555588,127.96,127.8,49.00321309]
[1725636698164,3.9132,127.84,127.8,49.00321309]
[1725636698471,3.8555588,127.96,127.76,45.15]
[1725636698472,45.15,127.87,127.76,45.15]
[1725636698653,48.97639895,127.87,127.76,49.126262]
[1725636698963,45.15,127.85,127.62,7.8397]
[1725636699163,45.15,127.85,127.73,45.15]
[1725636699364,3.9148,127.79,127.73,49.12430556]
[1725636699764,45.15,127.85,127.73,53.04090556]
[1725636699962,45.15,127.85,127.73,49.12430556]
[1725636700360,45.15,127.82,127.73,3.97430556]
[1725636700563,114.0,128.06,127.68,11.7545]
[1725636700759,28.31097439,128.16,127.76,45.15]
[1725636700760,45.15,127.88,127.76,45.15]
[1725636700961,2.6465,127.92,127.73,45.15]
[1725636700962,3.9149,127.79,127.74,3.96491467]
[1725636701260,45.15,127.84,127.71,45.15]
[1725636701454,45.15,127.86,127.67,49.14426122]
[1725636701455,2.6465,127.83,127.73,45.15]
[1725636701768,1.2761,127.83,127.78,45.15]
[1725636701970,3.9135,127.84,127.78,52.94833386]
[1725636702267,1.2761,127.9,127.83,45.15]
[1725636702456,3.9122,127.88,127.83,45.15]
[1725636702770,1.2761,127.9,127.83,45.15]
[1725636703462,3.84505768,127.89,127.83,45.15]
[1725636703659,3.84505768,127.89,127.78,3.88343386]
[1725636703660,4.00365309,127.89,127.8,45.15]
[1725636703855,1.2761,127.9,127.8,45.15]
[1725636704259,1.2761,127.9,127.82,45.15]
[1725636704662,3.9139,127.82,127.78,45.15]
[1725636704865,1.2761,127.9,127.78,49.07723755]
[1725636705062,5.1892446,127.9,127.78,49.07723755]
[1725636705267,5.1892446,127.9,127.8,45.15]
[1725636705468,5.1892446,127.9,127.67,49.14426122]
[1725636705469,1.2761,127.9,127.67,45.15]
[1725636705667,1.2761,127.9,127.67,3.97108231]
[1725636705668,45.15,127.86,127.67,3.97108231]
[1725636705865,1.3069,127.85,127.73,45.15]
[1725636706062,2.5885,127.85,127.73,45.15]
[1725636706269,45.15,127.83,127.71,45.15]
[1725636706457,1.3976,127.82,127.71,45.15]
[1725636706858,3.9165,127.74,127.71,45.15]
[1725636707063,1.3976,127.82,127.71,45.15]
[1725636707271,46.5476,127.82,127.71,45.15]
[1725636707474,3.9177,127.7,127.69,45.15]
[1725636707786,46.5476,127.82,127.62,45.15]
[1725636707787,45.15,127.75,127.62,45.15]
[1725636707965,45.15,127.73,127.62,45.15]
[1725636708267,45.15,127.73,127.55,3.9221]
[1725636708268,49.152,127.73,127.6,45.15]
[1725636708459,3.9203,127.62,127.6,45.15]
[1725636708666,49.152,127.73,127.6,45.15]
[1725636708860,49.152,127.73,127.62,45.15]
[1725636709159,4.002,127.73,127.62,45.15]
[1725636709375,4.0742,127.74,127.65,45.15]
[1725636709674,7.92694765,127.74,127.65,45.15]
[1725636710365,7.92694765,127.74,127.61,3.90876624]
[1725636710566,7.92694765,127.74,127.63,45.15]
[1725636710567,3.9189,127.66,127.63,45.15]
[1725636710766,7.92694765,127.74,127.63,45.15]
[1725636711165,3.9188,127.66,127.63,45.15]
[1725636711871,7.92694765,127.74,127.63,45.15]
[1725636712369,45.15,127.73,127.63,45.15]
[1725636712564,45.15,127.73,127.61,3.8525991]
[1725636712766,45.15,127.71,127.6,45.15]
[1725636713269,45.15,127.73,127.62,45.15]
[1725636713466,45.15,127.73,127.61,3.89884597]
[1725636713671,45.15,127.73,127.6,45.15]
[1725636713971,45.15,127.73,127.62,3.9198]
[1725636714166,45.15,127.73,127.6,45.15]
[1725636714368,45.15,127.73,127.61,3.88934936]
[1725636714573,45.15,127.73,127.61,3.9201]
[1725636714774,45.15,127.73,127.6,45.15]
[1725636714974,45.15,127.7,127.61,3.83564639]
[1725636715271,3.9191,127.65,127.61,3.83564639]
[1725636715666,3.9191,127.65,127.61,7.75584639]
[1725636715871,3.919,127.66,127.61,7.75584639]
[1725636716071,3.97362775,127.67,127.6,45.15]
[1725636716266,45.15,127.73,127.58,45.15]
[1725636716470,3.9196,127.64,127.59,3.9207]
[1725636716668,3.9196,127.64,127.48,45.15]
[1725636716669,45.15,127.65,127.48,45.15]
[1725636716971,46.4259,127.64,127.52,45.15]
[1725636717181,1.4021,127.63,127.52,45.15]
[1725636717474,1.4021,127.63,127.48,3.93482049]
[1725636717475,1.4021,127.63,127.54,45.15]
[1725636717676,5.25280143,127.63,127.55,3.84677975]
[1725636717875,1.4021,127.63,127.56,45.15]
[1725636718069,1.2759,127.64,127.56,49.05835018]
[1725636718377,1.2759,127.64,127.53,45.15]
[1725636718574,3.87070202,127.63,127.53,45.15]
[1725636719078,1.2759,127.64,127.55,45.15]
[1725636719272,1.2759,127.64,127.55,49.14894108]
[1725636719473,3.92,127.62,127.58,3.9212]
[1725636719674,3.92,127.62,127.55,49.14894108]
[1725636719871,3.99148988,127.63,127.55,49.14894108]
[1725636720276,1.2759,127.64,127.55,49.14894108]
[1725636721573,46.4259,127.64,127.55,3.99894108]
[1725636721775,46.4259,127.64,127.48,49.08482049]
[1725636721776,45.15,127.62,127.48,45.15]
[1725636721969,1.2759,127.64,127.46,72.39139929]
[1725636721970,45.15,127.58,127.49,4.00734104]
[1725636722172,1.3029,127.57,127.46,45.15]
[1725636722377,45.15,127.55,127.47,3.97008716]
[1725636722572,3.924,127.49,127.45,3.925]
[1725636722875,1.3818,127.54,127.46,45.15]
[1725636723079,3.9234,127.51,127.47,3.9244]
[1725636723281,1.3818,127.54,127.46,49.04440296]
[1725636723478,1.3818,127.54,127.46,3.89440296]
[1725636723680,3.9239,127.5,127.46,3.9249]
[1725636724182,1.3818,127.54,127.46,3.89501941]
[1725636724183,3.89109496,127.52,127.46,3.89501941]
[1725636724370,1.3818,127.54,127.43,45.15]
[1725636724579,5.40318679,127.54,127.43,49.14903212]
[1725636724779,3.9242,127.49,127.44,3.9254]
[1725636724972,46.5318,127.54,127.35,83.97483032]
[1725636725176,46.5318,127.54,127.23,11.7955]
[1725636725177,45.15,127.46,127.23,11.7955]
[1725636725476,45.15,127.46,127.32,45.15]
[1725636725477,45.15,127.44,127.32,45.15]
[1725636725678,45.15,127.44,127.32,49.00106554]
[1725636725976,49.05797011,127.44,127.34,45.15]
[1725636726179,14.0,127.38,127.16,7.8679]